Cogmind - Beta 13 @@@ ROGUE MODE // 2024.03.31 @ 21:40:55 Player: V1BEZ Result: Destroyed by Y-45 Defender with Beam Rifle Performance ------------- Evolutions (1) 500 Regions Visited (3) 600 Robots Destroyed (36) 180 Value Destroyed (840) 840 Prototype IDs (1) 20 Alien Tech Used (0) 0 Bonus (0) 0 TOTAL SCORE: 2140 Bonus ------- None Cogmind --------- Core Integrity 0/400 Matter 300/300 Energy 72/100 System Corruption 0% Temperature Cool (17) Movement Core (250) Ox4 Location -9/Storage Parts ------- > --- POWER (2) -------- (None) > --- PROPULSION (2) --- (None) > --- UTILITY (3) ------ Small Storage Unit Structural Scanner Field Recycling Unit > --- WEAPON (2) ------- (None) > --- INVENTORY (8) ---- Advanced Weight Redist. System Sensor Array Peak State ------------ > --- POWER ------------ Light Ion Engine > --- PROPULSION ------- Light Treads Light Treads > --- UTILITY ---------- Small Storage Unit Advanced Weight Redist. System Sensor Array > --- WEAPON ----------- EM Pulse Gun Heavy Particle Gun > --- INVENTORY -------- Aluminum Leg Aluminum Leg Advanced Weight Redist. System EM Pulse Gun Heavy Particle Gun Datajack [Rating: 14] Favorites ----------- Power Light Ion Engine Engine Light Ion Engine Propulsion Light Treads Treads Light Treads Leg Aluminum Leg Utility Small Storage Unit Device Field Recycling Unit Storage Small Storage Unit Protection Propulsion Shielding Weapon EM Pulse Gun Energy Gun EM Pulse Gun Launcher Grenade Launcher Special Melee Weapon Datajack Build | -11 -10 -9 -9 ------- Run | Yrd Mat Mat Sto Slots Evolved 2 | . . 2 . Power 1 | . . 1 . Propulsion . | . . . . Utility 1 | . . 1 . Weapon . | . . . . Parts Attached 27 | 3 4 15 5 Power 4 | 1 . 2 1 Engine 4 | 1 . 2 1 Core . | . . . . Reactor . | . . . . Propulsion 5 | . 2 1 2 Treads 3 | . 2 1 . Leg 2 | . . . 2 Wheel . | . . . . Hover . | . . . . Flight . | . . . . Utility 7 | . 2 5 . Device 5 | . 1 4 . Storage 1 | . 1 . . Processor . | . . . . Hackware . | . . . . Protection 1 | . . 1 . Artifact . | . . . . Weapon 11 | 2 . 7 2 Energy Gun 6 | 2 . 4 . Energy Cannon . | . . . . Ballistic Gun . | . . . . Ballistic Cannon . | . . . . Launcher 2 | . . 1 1 Special Weapon . | . . . . Impact Weapon . | . . . . Slashing Weapon . | . . . . Piercing Weapon . | . . . . Special Melee Weapon 3 | . . 2 1 Unidentified Prototypes 1 | . . 1 . Parts Lost 11 | . . 3 8 Power 4 | . . 2 2 Propulsion 2 | . . . 2 Utility . | . . . . Weapon 5 | . . 1 4 Highest Loss Streak 5 | . . 1 5 To Critical Strikes . | . . . . Average Slot Usage (%) 80 | . 77 83 76 Engine 11 | . 14 11 9 Treads 17 | . 21 22 7 Leg 3 | . . . 9 Device 15 | . . 15 22 Storage 11 | . 12 11 11 Protection 2 | . . 4 . Energy Gun 17 | . 28 17 12 Launcher 1 | . . . 3 Naked Turns . | . . . . Heaviest Build 24 | 7 13 24 24 Greatest Support 49 | 3 40 49 40 Greatest Overweight (x) 6 | 2 3 . 6 Average Overweight (x) . | 1 . . 1 Largest Inventory Capacity 8 | 5 8 8 8 Average Capacity 7 | 5 7 8 8 Most Carried 8 | 5 5 8 7 Average Carried 5 | 4 3 6 5 Final Capacity 8 | 5 8 8 8 Final Carried 7 | 5 3 7 2 Class Distribution -------------------- 100% | Mutant Dominant Class ---------------- Mutant | -10/Materials Mutant | -9/Materials Mutant | -9/Storage Resources | -11 -10 -9 -9 ----------- Run | Yrd Mat Mat Sto Matter Collected 456 | 192 68 130 66 Remotely . | . . . . Salvage Created 1161 | . 185 376 600 Parts 83 | . 17 33 33 Haulers Intercepted 1 | . . 1 . Recyclers Shooed 1 | . . . 1 Parts Field Recycled 17 | . . 9 8 Retrieved Matter 127 | . . 82 45 Parts Self-Destructed . | . . . . Prevented . | . . . . Kills | -11 -10 -9 -9 ------- Run | Yrd Mat Mat Sto Combat Hostiles Destroyed 23 | . 2 11 10 Melee 1 | . . 1 . Guns 20 | . 2 10 8 AOE 2 | . . . 2 Classes Destroyed 10 | . 3 3 4 Worker 1 | . . . 1 Builder 2 | . . . 2 Hauler 1 | . . 1 . Recycler 2 | . . . 2 Operator 2 | . 1 . 1 Watcher 5 | . 3 2 . Swarmer 7 | . . 7 . Grunt 12 | . 2 3 7 Duelist 1 | . . . 1 Sentry 3 | . . 1 2 Best Kill Streak 6 | . 4 6 6 Combat Bots Only 6 | . 2 6 3 Max Kills in Single Turn 2 | . 1 1 2 Gunslinging . | . . . . Exploded 1 | . . . 1 Melee 1 | . . 1 . Uniques/NPCs Destroyed . | . . . . Combat | -11 -10 -9 -9 -------- Run | Yrd Mat Mat Sto Hostile Shots Fired 167 | . 2 72 93 Missed 51 | . 1 22 28 Damage Taken 1467 | . 39 479 949 Core 413 | . . 117 296 Absorbed by Shields . | . . . . Redirected to Shielding 35 | . . 35 . Core Remaining (%) 100 | 100 100 . . Volleys Fired 106 | . 9 45 52 Largest 2 | . 2 2 2 Hottest 95 | . 80 95 95 Shots Fired 146 | . 18 54 74 Gun 133 | . 18 54 61 Cannon . | . . . . Launcher 13 | . . . 13 Special . | . . . . Kinetic . | . . . . Thermal 95 | . . 43 52 Explosive 13 | . . . 13 Electromagnetic 38 | . 18 11 9 Robot Hit Streak 8 | . 7 4 8 Robot Miss Streak 4 | . 1 4 3 Penetration Max . | . . . . Secondary Targets . | . . . . Shots Hit Robots 85 | . 11 30 44 Core Hits 44 | . 7 12 25 Critical Kills . | . . . . Critical Parts Destroyed . | . . . . Critical Strikes 4 | . 1 1 2 Burn 3 | . . 1 2 Corrupt 1 | . 1 . . Melee Attacks 3 | . . 2 1 Impact . | . . . . Slashing . | . . . . Piercing . | . . . . Sneak Attacks 1 | . . 1 . Combat Hostiles . | . . . . Follow-up Attacks . | . . . . Damage Inflicted 1978 | . 245 583 1150 Guns 1416 | . 205 556 655 Cannons . | . . . . Explosions 531 | . 40 . 491 Melee . | . . . . Ramming 31 | . . 27 4 Kinetic . | . . . . Thermal 1108 | . 40 496 572 Explosive 491 | . . . 491 Electromagnetic 348 | . 205 60 83 Impact . | . . . . Slashing . | . . . . Piercing . | . . . . Highest Corruption . | . . . . Average Corruption . | . . . . Corruption Purged . | . . . . Corruption Blocked . | . . . . Overload Shots . | . . . . Overflow Damage 18 | . 10 . 8 Projectiles . | . . . . Explosions 18 | . 10 . 8 Melee . | . . . . Knockbacks . | . . . . Impact . | . . . . Kinetic . | . . . . Secondary . | . . . . Self-Inflicted Damage 142 | . 21 . 121 Shots 8 | . 1 . 7 Rammed 4 | . . 3 1 Targets Rammed 6 | . . 5 1 Kicked . | . . . . Crushed 2 | . . 2 . Highest Temperature 341 | . 111 90 341 Average Temperature 79 | . 44 31 113 Received Heat Transfer 528 | . 9 144 375 Effects 1 | . . . 1 Short Circuit 1 | . . . 1 Siege Activations . | . . . . Robots Corrupted . | . . . . Combat Hostiles . | . . . . Parts Fried 2 | . 2 . . Impact Corruptions . | . . . . Robots Melted . | . . . . Combat Hostiles . | . . . . Parts Melted 5 | . . 2 3 Heat Transferred 2344 | . 50 1036 1258 Parts Sabotaged . | . . . . Parts Stolen . | . . . . Parts Stripped . | . . . . Power Chain Reactions 1 | . 1 . . Alert | -11 -10 -9 -9 ------- Run | Yrd Mat Mat Sto Peak Influence 340 | . 126 206 340 Initial 81 | . . 52 81 Average 140 | . 78 145 185 Maximum Alert Level 1 | . . 1 1 Low Security (%) 86 | 100 100 95 62 Level 1 13 | . . 4 37 Level 2 . | . . . . Level 3 . | . . . . Level 4 . | . . . . Level 5 . | . . . . High Security . | . . . . Max Security . | . . . . Squads Dispatched 4 | . . 1 3 Investigation . | . . . . Extermination . | . . . . Reinforcement 3 | . . 1 2 Assault . | . . . . Garrison 1 | . . . 1 Intercept . | . . . . Searches Triggered . | . . . . Construction Impeded 1 | . . . 1 Haulers Reinforced . | . . . . Active Scanning Responses . | . . . . Cargo Convoy Interrupts . | . . . . Stealth | -11 -10 -9 -9 --------- Run | Yrd Mat Mat Sto Distress Signals 1 | . . . 1 Communications Jammed . | . . . . Distress Signals . | . . . . Times Spotted 41 | . 6 18 17 Peak Tracking Total 5 | . 4 5 5 Tactical Retreats 2 | . . 2 . Traps | -11 -10 -9 -9 ------- Run | Yrd Mat Mat Sto Traps Triggered . | . . . . Indirectly . | . . . . Trap Hack Attempts . | . . . . Triggered . | . . . . Disarmed . | . . . . Reprogrammed . | . . . . Reused . | . . . . Traps Extracted . | . . . . Installed . | . . . . Triggered . | . . . . Machines | -11 -10 -9 -9 ---------- Run | Yrd Mat Mat Sto Machines Disabled 3 | . . 1 2 Max in Single Turn 1 | . . 1 1 Machines Repaired . | . . . . Machines Dismantled . | . . . . Machines Sabotaged . | . . . . Overloaded Fab Kills . | . . . . Hacking | -11 -10 -9 -9 --------- Run | Yrd Mat Mat Sto Machines Accessed 5 | . 2 1 2 Terminals 4 | . 2 1 1 Fabricators . | . . . . Repair Stations . | . . . . Recycling Units 1 | . . . 1 Scanalyzers . | . . . . Garrison Access . | . . . . Total Hacks 19 | . 8 3 8 Successful 9 | . 3 . 6 Failed 10 | . 5 3 2 Catastrophic . | . . . . Database Lockouts . | . . . . Manual . | . . . . Terminals 14 | . 8 3 3 Fabricators . | . . . . Repair Stations . | . . . . Recycling Units 5 | . . . 5 Scanalyzers . | . . . . Garrison Access . | . . . . Terminal Hacks 6 | . 3 . 3 Record 3 | . 3 . . Robot Schematic 1 | . . . 1 Alert Level 1 | . . . 1 Locate Traps 1 | . . . 1 Fabricator Hacks . | . . . . Repair Station Hacks . | . . . . Recycling Unit Hacks 3 | . . . 3 Recycle Component 2 | . . . 2 Process 1 | . . . 1 Scanalyzer . | . . . . Garrison Access Hacks . | . . . . Unauthorized Hacks . | . . . . Terminals . | . . . . Fabricators . | . . . . Repair Stations . | . . . . Recycling Units . | . . . . Scanalyzers . | . . . . Garrison Access . | . . . . Data Cores Recovered 2 | . 1 . 1 Used 1 | . . . 1 Hacking Detections 5 | . 2 1 2 Full Trace Events . | . . . . Feedback Events . | . . . . Feedback Blocked . | . . . . Robot Schematics Acquired 1 | . . . 1 Robots Built . | . . . . Authchips . | . . . . Time . | . . . . Total Robot Build Rating . | . . . . Part Schematics Acquired . | . . . . Parts Built . | . . . . Authchips . | . . . . Time . | . . . . Total Part Build Rating . | . . . . Parts Repaired . | . . . . Time . | . . . . Parts Recycled 2 | . . . 2 Recycled Matter 27 | . . . 27 Retrieved Matter . | . . . . Retrieved Components . | . . . . Parts Scanalyzed . | . . . . Part Schematics Acquired . | . . . . Parts Damaged . | . . . . Bothacking | -11 -10 -9 -9 ------------ Run | Yrd Mat Mat Sto Used RIF Installer . | . . . . Robots Hacked 1 | . . 1 . Non-combat . | . . . . Combat 1 | . . 1 . Robot Hacks Applied 1 | . . 1 . parse_system 1 | . . 1 . Relay Couplers Released . | . . . . Fabnet Peak Effective % . | . . . . Robots Rewired . | . . . . Allies Hacked . | . . . . Hacks Repelled . | . . . . Allies | -11 -10 -9 -9 -------- Run | Yrd Mat Mat Sto Total Allies . | . . . . Largest Group . | . . . . Highest-Rated Group . | . . . . Highest-Rated Ally . | . . . . Total Orders . | . . . . Ally Attacks . | . . . . Total Damage . | . . . . Kills . | . . . . Allies Corrupted . | . . . . Allies Melted . | . . . . Intel | -11 -10 -9 -9 ------- Run | Yrd Mat Mat Sto Robot Analysis Total . | . . . . Derelict Logs Recovered . | . . . . Drone Launches . | . . . . Drone Recoveries . | . . . . Exploration | -11 -10 -9 -9 ------------- Run | Yrd Mat Mat Sto Turns Passed 1537 | 71 255 730 481 Spaces Moved 692 | 57 137 339 159 Core 99 | 57 35 . 7 Treads 505 | . 102 339 64 Legs 88 | . . . 88 Wheels . | . . . . Hover . | . . . . Flight . | . . . . Fastest Speed 50 | 50 150 160 160 Average Speed 169 | 110 162 160 216 Slowest Speed 350 | 150 200 160 350 Overloaded Moves . | . . . . Propulsion Burnouts . | . . . . Robots Hopped . | . . . . Cave-ins Triggered . | . . . . Exploration Rate (%) 21 | 4 29 24 28 Regions Visited 3 Branch Regions 1 Pre-discovered Areas . | . . . . Known Exits Taken . | . . . . Unknown Exits Taken 3 | 1 1 1 . Scrap Searched . | . . . . Spaces Dug . | . . . . Terrain Destroyed 73 | . 4 . 69 Melee . | . . . . Projectile . | . . . . AOE 73 | . 4 . 69 Terrain Rammed . | . . . . Walls Destroyed . | . . . . Machines Disabled . | . . . . Actions | -11 -10 -9 -9 --------- Run | Yrd Mat Mat Sto Total 903 | 64 151 468 220 Wait 47 | . . 47 . Move 689 | 56 136 338 159 Hop . | . . . . Pick Up 19 | 5 2 11 1 Fast Attach 3 | 3 . . . Attach 16 | . 4 8 4 Detach 2 | . . 2 . Swap 8 | . . 7 1 Drop 4 | . . 3 1 Fire 106 | . 9 45 52 Melee 3 | . . 2 1 Ram . | . . . . Kick . | . . . . Crush 6 | . . 5 1 Escape Stasis . | . . . . Rewire . | . . . . Trap . | . . . . Miscellaneous . | . . . . Route ------- -11/Scrapyard -10/Materials (discovered 2 exits: *Mat / [*Min]) -9/Materials -9/Storage History --------- Turn | Location | Event 10 | -11/Scrapyard | Discovered new exit (range 16) 72 | -11/Scrapyard | Entered Materials 135 | -10/Materials | Discovered new exit (range 15) 291 | -10/Materials | Discovered new exit (range 8) 311 | -10/Materials | Build established: Mutant 327 | -10/Materials | Entered another Materials area 327 | -9/Materials | Evolved 2 slots: Power x1, Utility x1 795 | -9/Materials | Discovered new exit (range 12) 1057 | -9/Materials | Entered Storage 1518 | -9/Storage | Core integrity fell below 50% 1523 | -9/Storage | Garrison activated, responded to threat 1533 | -9/Storage | Core integrity fell below 20% 1538 | -9/Storage | Destroyed by Y-45 Defender with Beam Rifle Last Messages --------------- 01516_ U-05 Engineer lays Concrete. 01522_ K-01 Serf collects debris. 01523_ U-05 Engineer lays Concrete. 01523_ Y-45 Defender calls for garrison reinforcements. 01523_ ALERT: Activating Garrison Access S001. 01523_ K-01 Serf destroyed. 01523_ U-05 Engineer destroyed. 01525_ U-05 Engineer lays Concrete. 01526_ Grenade Launcher destroyed. 01526_ Destroyed Grenade Launcher. 01526_ Hvy. Particle Gun destroyed. 01526_ Destroyed Hvy. Particle Gun. 01526_ U-05 Engineer destroyed. 01530_ R-06 Scavenger collects Heat Sink. 01530_ Acquired 16 matter. 01534_ R-06 Scavenger collects Aluminum Leg. 01535_ Jacked Y-45 Defender... 01535_ Datajack destroyed. 01537_ Critical hit (Burn: +37). Map ----- +----------------------------------------------------+ | ?????????????????????????????????????????????????? | | ?????????????????????????????????????????????????? | | ?????????????????????????????????????????????????? | | ?????????????????????????????????????????????????? | | ?????????????????????????????????????????????????? | | ?????????????????????????????????????????????????? | | ?????????????????????????????????????????????????? | | ?????????????????????????????????????????????????? | | ?????????????????????????????????????????????????? | | ?????????????????????????????????????????????????? | | ??????????????????????? ?????????????????????????? | | ????????????????????? ????????????????????????? | | ????????????????????"Y ????????????????????????? | | ???????????????????? Y] ????????????????????????? | | ???????????????????"" k ????????????????????????? | | ?????????????????#""" ????????????????????????? | | ?????????????????#""" ????????????????????????? | | ?????????????????# ????????????????????????? | | ?????????????###### ####????????????????????? | | ?????????????? #????????????????????? | | ???????????????? #????????????????????? | | ?????????????????? ####?????????????????? | | ???????????????????# ####??????????????? | | ???????????????????# = % % ???????????????? | | ???????????????????# *%* #??????????????????? | | ???????????????????# @ Yr ##?????????????????? | | ???????????????????## "" #?????????????????? | | ????????????????????# " %m ##?????????????????? | | ##??????????????????# "" ######?????????????? | | ##??????????????##### |! ######?????????????? | | ##?????????????############+## ## ??? ????????? | | ##????????########"""### ^ ## ???????? | | ##???????#########"Y"### + ???????? | | ##???????### ^!!! ## ""??????????? | | # ???????## " ^ !! ##?????????????? | | + ???????### " !! ##?????????????? | | ############ "" # % ##?????????????? | | ############ # ## ????????? | | # #########/#+## #######????????? | | # + % ??????? | | # """"" ######### % % % ??????? | | # """"" ###### ## % ########+####????????? | | " """"" + # #% ########### ???????????? | | # ### # # # ######## ????????????????? | | # ### # # """"" # ????????????????? | | # ### # # """"" # ????????????????? | | ##"T"######## ### # """"" # ????????????????? | | ##"""######## # # ????????????????? | | #######????## T + # ????????????????? | | #######????####+## # # ????????????????? | +----------------------------------------------------+ Best States ------------- Heat Dissipation 28 Energy Generation 15 Energy Capacity 250 Matter Stores 300 Matter Capacity 300 Sight Range 16 Robot Scan Range 14 Terrain Scan Density 10 Additional Mass Support 9 Propulsion Shielding 33 Evasion (%) 50 Recoil Reduction 2 Item Schematics ----------------- None Robot Schematics ------------------ S-10 Pest | -9/Storage | Hacked Fabricated ------------ Nothing Alien Tech Used ----------------- None Achievements -------------- Dynamic Key Loot Pinata Challenges ------------ None Game ------ Seed AntimatterInsulatedCapacitor Manual? 0 Play Time 00:25:45 Cumulative 4.1 hours Start 2024.03.30 @ 22:44:07 End 2024.03.31 @ 21:40:55 Sessions 2 Manual Loads 0 Difficulty Rogue Special Mode None Game No. 11 Rogue 11 Adventurer 0 Explorer 0 Win Type - Total 0 Types 0/0/0/0/0/0/0/0/0 Lore% 1 Gallery% 7 Achievement% 8 Wizard Run 0 Options --------- Layout 1 ASCII 0 Keyboard 0 Movement Mouse Keybinds 0 Fullscreen 2 Font 24/Smallcaps Map View 50x35 Zoom Use 0% Tactical HUD 1 Map Filters NONE Filters NONE Steam 1 RUN: cb62a7c0-e6f5-48a9-9fc9-121de481eb7c